{"text_format":"3","workbook":"xlsx","n_sheets":2,"sheets":["Súlycsökkenés nyilvántartása","számítások"],"not_rendered":{"charts":1,"defined_names":10},"read":"whole","date_system":"1900"}

{"sheet":"Súlycsökkenés nyilvántartása","index":0,"n_rows":19,"n_cols":9,"rows_kept":19,"merged":[[0,3,0,7],[0,8,0,9],[1,3,2,9]]}
[null,"SÚLY CÉLKITŰZÉS","DIAGRAMNÉZET","Név",{"$nulls":4},"SÚLYCSÖKKENÉS"]
[{"$nulls":3},"NYILVÁNTARTÁS"]
[null,{"v":172,"d":"172.0"},"HETI"]
[null,"SÚLY CÉLKITŰZÉS MEGJELENÍTÉSE","Igen"]
[null,"A cellában az aktuális súlyt nyomon követő testsúlydiagram található. Válassza az „Igen“ értéket a C4 cellában, ha szeretné megjeleníteni a súly célkitűzést a területdiagramon."]
[]
[null,"DÁTUM","SÚLY"]
[null,{"$f":"TODAY()-77","v":"2022-01-19"},{"v":176,"d":"176.0"}]
[null,{"$f":"TODAY()-70","v":"2022-01-26"},{"v":176,"d":"176.0"}]
[null,{"$f":"TODAY()-63","v":"2022-02-02"},177.6]
[null,{"$f":"TODAY()-56","v":"2022-02-09"},176.5]
[null,{"$f":"TODAY()-49","v":"2022-02-16"},176.1]
[null,{"$f":"TODAY()-42","v":"2022-02-23"},{"v":174,"d":"174.0"}]
[null,{"$f":"TODAY()-35","v":"2022-03-02"},173.5]
[null,{"$f":"TODAY()-28","v":"2022-03-09"},{"v":173,"d":"173.0"}]
[null,{"$f":"TODAY()-21","v":"2022-03-16"},{"v":172,"d":"172.0"}]
[null,{"$f":"TODAY()-14","v":"2022-03-23"},{"v":172,"d":"172.0"}]
[null,{"$f":"TODAY()-7","v":"2022-03-30"},{"v":173,"d":"173.0"}]
[null,{"$f":"TODAY()","v":"2022-04-06"},{"v":172,"d":"172.0"}]

{"sheet":"számítások","index":1,"n_rows":107,"n_cols":17,"rows_kept":107,"hidden":true}
["*** A lapnak rejtve kell maradnia ***"]
[]
[{"$f":"COUNTIF(A5:A107,FALSE)","v":12},"Időszakok","Értékek",{"$nulls":3},{"$f":"COUNTIF(H5:H28,\">\"&0)","v":4},"Időszakok",null,"Értékek"]
[null,"Hét",null,null,{"$f":"IFERROR(IF(CélSúlyMutatása=\"Igen\", TRUE, FALSE),FALSE)","v":true},null,null,"Hónap","EOM"]
[{"$f":"FALSE","v":false},{"$f":"IFERROR(IF(LEN('Súlycsökkenés nyilvántartása'!$B8)=0,TODAY(),'Súlycsökkenés nyilvántartása'!$B8),TODAY())","v":"2022-01-19"},{"$f":"IFERROR(IF(LEN('Súlycsökkenés nyilvántartása'!$C8)=0,CélSúly,'Súlycsökkenés nyilvántartása'!$C8),0)","v":176},{"$f":"IFERROR(IF(MIN(DiagramPeriódusok)=0,TODAY(),MIN(DiagramPeriódusok)),TODAY())","v":"2022-01-19"},{"$f":"IFERROR(IF($A$5,0,IF($E$4,CélSúly,NA())),0)","v":172},null,null,{"$f":"IFERROR(IF($A$5,TODAY(),DATE(YEAR($B5),MONTH($B5),1)),\"\")","v":"2022-01-01"},{"$f":"IFERROR(IF($A$5,TODAY(),EOMONTH($H5,0)),\"\")","v":"2022-01-31"},{"$f":"IFERROR(IF($A$5,0,AVERAGEIFS(Súly[SÚLY],Súly[DÁTUM],\">=\"&$H5,Súly[DÁTUM],\"<=\"&$I5)),NA())","v":176}]
[{"$f":"IF((LEN('Súlycsökkenés nyilvántartása'!$C9)=0),TRUE)","v":false},{"$f":"IFERROR(IF(A6,0,IF(LEN('Súlycsökkenés nyilvántartása'!$B9)=0,0,'Súlycsökkenés nyilvántartása'!$B9)),\"\")","v":"2022-01-26"},{"$f":"IFERROR(IF(A6,0,IF(LEN('Súlycsökkenés nyilvántartása'!$C9)=0,0,'Súlycsökkenés nyilvántartása'!$C9)),\"\")","v":176},{"$f":"IFERROR(IF(MAX(DiagramPeriódusok)=0,TODAY(),MAX(DiagramPeriódusok)),TODAY())","v":"2022-04-06"},{"$f":"IFERROR(IF($A$5,0,IF($E$4,CélSúly,NA())),0)","v":172},null,null,{"$f":"IF($I5+1>MAX($B:$B),NA(),$I5+1)","v":"2022-02-01"},{"$f":"EOMONTH($H6,0)","v":"2022-02-28"},{"$f":"IFERROR(AVERAGEIFS(Súly[SÚLY],Súly[DÁTUM],\">=\"&$H6,Súly[DÁTUM],\"<=\"&$I6),NA())","v":176.05}]
[{"$f":"IF((LEN('Súlycsökkenés nyilvántartása'!$C10)=0),TRUE)","v":false},{"$f":"IFERROR(IF(A7,0,IF(LEN('Súlycsökkenés nyilvántartása'!$B10)=0,0,'Súlycsökkenés nyilvántartása'!$B10)),\"\")","v":"2022-02-02"},{"$f":"IFERROR(IF(A7,0,IF(LEN('Súlycsökkenés nyilvántartása'!$C10)=0,0,'Súlycsökkenés nyilvántartása'!$C10)),\"\")","v":177.6},{"$nulls":4},"2022-03-01","2022-03-31",{"$f":"IFERROR(AVERAGEIFS(Súly[SÚLY],Súly[DÁTUM],\">=\"&$H7,Súly[DÁTUM],\"<=\"&$I7),NA())","v":172.7}]
[{"$f":"IF((LEN('Súlycsökkenés nyilvántartása'!$C11)=0),TRUE)","v":false},{"$f":"IFERROR(IF(A8,0,IF(LEN('Súlycsökkenés nyilvántartása'!$B11)=0,0,'Súlycsökkenés nyilvántartása'!$B11)),\"\")","v":"2022-02-09"},{"$f":"IFERROR(IF(A8,0,IF(LEN('Súlycsökkenés nyilvántartása'!$C11)=0,0,'Súlycsökkenés nyilvántartása'!$C11)),\"\")","v":176.5},{"$nulls":4},"2022-04-01","2022-04-30",{"$f":"IFERROR(AVERAGEIFS(Súly[SÚLY],Súly[DÁTUM],\">=\"&$H8,Súly[DÁTUM],\"<=\"&$I8),NA())","v":172}]
[{"$f":"IF((LEN('Súlycsökkenés nyilvántartása'!$C12)=0),TRUE)","v":false},{"$f":"IFERROR(IF(A9,0,IF(LEN('Súlycsökkenés nyilvántartása'!$B12)=0,0,'Súlycsökkenés nyilvántartása'!$B12)),\"\")","v":"2022-02-16"},{"$f":"IFERROR(IF(A9,0,IF(LEN('Súlycsökkenés nyilvántartása'!$C12)=0,0,'Súlycsökkenés nyilvántartása'!$C12)),\"\")","v":176.1},{"$nulls":4},{"$error":"#N/A"},{"$error":"#N/A"},{"$f":"IFERROR(AVERAGEIFS(Súly[SÚLY],Súly[DÁTUM],\">=\"&$H9,Súly[DÁTUM],\"<=\"&$I9),NA())","v":{"$error":"#N/A"}}]
[{"$f":"IF((LEN('Súlycsökkenés nyilvántartása'!$C13)=0),TRUE)","v":false},{"$f":"IFERROR(IF(A10,0,IF(LEN('Súlycsökkenés nyilvántartása'!$B13)=0,0,'Súlycsökkenés nyilvántartása'!$B13)),\"\")","v":"2022-02-23"},{"$f":"IFERROR(IF(A10,0,IF(LEN('Súlycsökkenés nyilvántartása'!$C13)=0,0,'Súlycsökkenés nyilvántartása'!$C13)),\"\")","v":174},{"$nulls":4},{"$error":"#N/A"},{"$error":"#N/A"},{"$f":"IFERROR(AVERAGEIFS(Súly[SÚLY],Súly[DÁTUM],\">=\"&$H10,Súly[DÁTUM],\"<=\"&$I10),NA())","v":{"$error":"#N/A"}}]
[{"$f":"IF((LEN('Súlycsökkenés nyilvántartása'!$C14)=0),TRUE)","v":false},{"$f":"IFERROR(IF(A11,0,IF(LEN('Súlycsökkenés nyilvántartása'!$B14)=0,0,'Súlycsökkenés nyilvántartása'!$B14)),\"\")","v":"2022-03-02"},{"$f":"IFERROR(IF(A11,0,IF(LEN('Súlycsökkenés nyilvántartása'!$C14)=0,0,'Súlycsökkenés nyilvántartása'!$C14)),\"\")","v":173.5},{"$nulls":4},{"$error":"#N/A"},{"$error":"#N/A"},{"$f":"IFERROR(AVERAGEIFS(Súly[SÚLY],Súly[DÁTUM],\">=\"&$H11,Súly[DÁTUM],\"<=\"&$I11),NA())","v":{"$error":"#N/A"}},{"$nulls":6},{"$f":"MAX($B:$B)","v":"2022-04-06"}]
[{"$f":"IF((LEN('Súlycsökkenés nyilvántartása'!$C15)=0),TRUE)","v":false},{"$f":"IFERROR(IF(A12,0,IF(LEN('Súlycsökkenés nyilvántartása'!$B15)=0,0,'Súlycsökkenés nyilvántartása'!$B15)),\"\")","v":"2022-03-09"},{"$f":"IFERROR(IF(A12,0,IF(LEN('Súlycsökkenés nyilvántartása'!$C15)=0,0,'Súlycsökkenés nyilvántartása'!$C15)),\"\")","v":173},{"$nulls":4},{"$error":"#N/A"},{"$error":"#N/A"},{"$f":"IFERROR(AVERAGEIFS(Súly[SÚLY],Súly[DÁTUM],\">=\"&$H12,Súly[DÁTUM],\"<=\"&$I12),NA())","v":{"$error":"#N/A"}}]
[{"$f":"IF((LEN('Súlycsökkenés nyilvántartása'!$C16)=0),TRUE)","v":false},{"$f":"IFERROR(IF(A13,0,IF(LEN('Súlycsökkenés nyilvántartása'!$B16)=0,0,'Súlycsökkenés nyilvántartása'!$B16)),\"\")","v":"2022-03-16"},{"$f":"IFERROR(IF(A13,0,IF(LEN('Súlycsökkenés nyilvántartása'!$C16)=0,0,'Súlycsökkenés nyilvántartása'!$C16)),\"\")","v":172},{"$nulls":4},{"$error":"#N/A"},{"$error":"#N/A"},{"$f":"IFERROR(AVERAGEIFS(Súly[SÚLY],Súly[DÁTUM],\">=\"&$H13,Súly[DÁTUM],\"<=\"&$I13),NA())","v":{"$error":"#N/A"}}]
[{"$f":"IF((LEN('Súlycsökkenés nyilvántartása'!$C17)=0),TRUE)","v":false},{"$f":"IFERROR(IF(A14,0,IF(LEN('Súlycsökkenés nyilvántartása'!$B17)=0,0,'Súlycsökkenés nyilvántartása'!$B17)),\"\")","v":"2022-03-23"},{"$f":"IFERROR(IF(A14,0,IF(LEN('Súlycsökkenés nyilvántartása'!$C17)=0,0,'Súlycsökkenés nyilvántartása'!$C17)),\"\")","v":172},{"$nulls":4},{"$error":"#N/A"},{"$error":"#N/A"},{"$f":"IFERROR(AVERAGEIFS(Súly[SÚLY],Súly[DÁTUM],\">=\"&$H14,Súly[DÁTUM],\"<=\"&$I14),NA())","v":{"$error":"#N/A"}}]
[{"$f":"IF((LEN('Súlycsökkenés nyilvántartása'!$C18)=0),TRUE)","v":false},{"$f":"IFERROR(IF(A15,0,IF(LEN('Súlycsökkenés nyilvántartása'!$B18)=0,0,'Súlycsökkenés nyilvántartása'!$B18)),\"\")","v":"2022-03-30"},{"$f":"IFERROR(IF(A15,0,IF(LEN('Súlycsökkenés nyilvántartása'!$C18)=0,0,'Súlycsökkenés nyilvántartása'!$C18)),\"\")","v":173},{"$nulls":4},{"$error":"#N/A"},{"$error":"#N/A"},{"$f":"IFERROR(AVERAGEIFS(Súly[SÚLY],Súly[DÁTUM],\">=\"&$H15,Súly[DÁTUM],\"<=\"&$I15),NA())","v":{"$error":"#N/A"}}]
[{"$f":"IF((LEN('Súlycsökkenés nyilvántartása'!$C19)=0),TRUE)","v":false},{"$f":"IFERROR(IF(A16,0,IF(LEN('Súlycsökkenés nyilvántartása'!$B19)=0,0,'Súlycsökkenés nyilvántartása'!$B19)),\"\")","v":"2022-04-06"},{"$f":"IFERROR(IF(A16,0,IF(LEN('Súlycsökkenés nyilvántartása'!$C19)=0,0,'Súlycsökkenés nyilvántartása'!$C19)),\"\")","v":172},{"$nulls":4},{"$error":"#N/A"},{"$error":"#N/A"},{"$f":"IFERROR(AVERAGEIFS(Súly[SÚLY],Súly[DÁTUM],\">=\"&$H16,Súly[DÁTUM],\"<=\"&$I16),NA())","v":{"$error":"#N/A"}}]
[{"$f":"IF((LEN('Súlycsökkenés nyilvántartása'!$C20)=0),TRUE)","v":true},{"$f":"IFERROR(IF(A17,0,IF(LEN('Súlycsökkenés nyilvántartása'!$B20)=0,0,'Súlycsökkenés nyilvántartása'!$B20)),\"\")","v":"00:00:00"},{"$f":"IFERROR(IF(A17,0,IF(LEN('Súlycsökkenés nyilvántartása'!$C20)=0,0,'Súlycsökkenés nyilvántartása'!$C20)),\"\")","v":0},{"$nulls":4},{"$error":"#N/A"},{"$error":"#N/A"},{"$f":"IFERROR(AVERAGEIFS(Súly[SÚLY],Súly[DÁTUM],\">=\"&$H17,Súly[DÁTUM],\"<=\"&$I17),NA())","v":{"$error":"#N/A"}}]
[{"$f":"IF((LEN('Súlycsökkenés nyilvántartása'!$C21)=0),TRUE)","v":true},{"$f":"IFERROR(IF(A18,0,IF(LEN('Súlycsökkenés nyilvántartása'!$B21)=0,0,'Súlycsökkenés nyilvántartása'!$B21)),\"\")","v":"00:00:00"},{"$f":"IFERROR(IF(A18,0,IF(LEN('Súlycsökkenés nyilvántartása'!$C21)=0,0,'Súlycsökkenés nyilvántartása'!$C21)),\"\")","v":0},{"$nulls":4},{"$error":"#N/A"},{"$error":"#N/A"},{"$f":"IFERROR(AVERAGEIFS(Súly[SÚLY],Súly[DÁTUM],\">=\"&$H18,Súly[DÁTUM],\"<=\"&$I18),NA())","v":{"$error":"#N/A"}}]
[{"$f":"IF((LEN('Súlycsökkenés nyilvántartása'!$C22)=0),TRUE)","v":true},{"$f":"IFERROR(IF(A19,0,IF(LEN('Súlycsökkenés nyilvántartása'!$B22)=0,0,'Súlycsökkenés nyilvántartása'!$B22)),\"\")","v":"00:00:00"},{"$f":"IFERROR(IF(A19,0,IF(LEN('Súlycsökkenés nyilvántartása'!$C22)=0,0,'Súlycsökkenés nyilvántartása'!$C22)),\"\")","v":0},{"$nulls":4},{"$error":"#N/A"},{"$error":"#N/A"},{"$f":"IFERROR(AVERAGEIFS(Súly[SÚLY],Súly[DÁTUM],\">=\"&$H19,Súly[DÁTUM],\"<=\"&$I19),NA())","v":{"$error":"#N/A"}}]
[{"$f":"IF((LEN('Súlycsökkenés nyilvántartása'!$C23)=0),TRUE)","v":true},{"$f":"IFERROR(IF(A20,0,IF(LEN('Súlycsökkenés nyilvántartása'!$B23)=0,0,'Súlycsökkenés nyilvántartása'!$B23)),\"\")","v":"00:00:00"},{"$f":"IFERROR(IF(A20,0,IF(LEN('Súlycsökkenés nyilvántartása'!$C23)=0,0,'Súlycsökkenés nyilvántartása'!$C23)),\"\")","v":0},{"$nulls":4},{"$error":"#N/A"},{"$error":"#N/A"},{"$f":"IFERROR(AVERAGEIFS(Súly[SÚLY],Súly[DÁTUM],\">=\"&$H20,Súly[DÁTUM],\"<=\"&$I20),NA())","v":{"$error":"#N/A"}}]
[{"$f":"IF((LEN('Súlycsökkenés nyilvántartása'!$C24)=0),TRUE)","v":true},{"$f":"IFERROR(IF(A21,0,IF(LEN('Súlycsökkenés nyilvántartása'!$B24)=0,0,'Súlycsökkenés nyilvántartása'!$B24)),\"\")","v":"00:00:00"},{"$f":"IFERROR(IF(A21,0,IF(LEN('Súlycsökkenés nyilvántartása'!$C24)=0,0,'Súlycsökkenés nyilvántartása'!$C24)),\"\")","v":0},{"$nulls":4},{"$error":"#N/A"},{"$error":"#N/A"},{"$f":"IFERROR(AVERAGEIFS(Súly[SÚLY],Súly[DÁTUM],\">=\"&$H21,Súly[DÁTUM],\"<=\"&$I21),NA())","v":{"$error":"#N/A"}}]
[{"$f":"IF((LEN('Súlycsökkenés nyilvántartása'!$C25)=0),TRUE)","v":true},{"$f":"IFERROR(IF(A22,0,IF(LEN('Súlycsökkenés nyilvántartása'!$B25)=0,0,'Súlycsökkenés nyilvántartása'!$B25)),\"\")","v":"00:00:00"},{"$f":"IFERROR(IF(A22,0,IF(LEN('Súlycsökkenés nyilvántartása'!$C25)=0,0,'Súlycsökkenés nyilvántartása'!$C25)),\"\")","v":0},{"$nulls":4},{"$error":"#N/A"},{"$error":"#N/A"},{"$f":"IFERROR(AVERAGEIFS(Súly[SÚLY],Súly[DÁTUM],\">=\"&$H22,Súly[DÁTUM],\"<=\"&$I22),NA())","v":{"$error":"#N/A"}}]
[{"$f":"IF((LEN('Súlycsökkenés nyilvántartása'!$C26)=0),TRUE)","v":true},{"$f":"IFERROR(IF(A23,0,IF(LEN('Súlycsökkenés nyilvántartása'!$B26)=0,0,'Súlycsökkenés nyilvántartása'!$B26)),\"\")","v":"00:00:00"},{"$f":"IFERROR(IF(A23,0,IF(LEN('Súlycsökkenés nyilvántartása'!$C26)=0,0,'Súlycsökkenés nyilvántartása'!$C26)),\"\")","v":0},{"$nulls":4},{"$error":"#N/A"},{"$error":"#N/A"},{"$f":"IFERROR(AVERAGEIFS(Súly[SÚLY],Súly[DÁTUM],\">=\"&$H23,Súly[DÁTUM],\"<=\"&$I23),NA())","v":{"$error":"#N/A"}}]
[{"$f":"IF((LEN('Súlycsökkenés nyilvántartása'!$C27)=0),TRUE)","v":true},{"$f":"IFERROR(IF(A24,0,IF(LEN('Súlycsökkenés nyilvántartása'!$B27)=0,0,'Súlycsökkenés nyilvántartása'!$B27)),\"\")","v":"00:00:00"},{"$f":"IFERROR(IF(A24,0,IF(LEN('Súlycsökkenés nyilvántartása'!$C27)=0,0,'Súlycsökkenés nyilvántartása'!$C27)),\"\")","v":0},{"$nulls":4},{"$error":"#N/A"},{"$error":"#N/A"},{"$f":"IFERROR(AVERAGEIFS(Súly[SÚLY],Súly[DÁTUM],\">=\"&$H24,Súly[DÁTUM],\"<=\"&$I24),NA())","v":{"$error":"#N/A"}}]
[{"$f":"IF((LEN('Súlycsökkenés nyilvántartása'!$C28)=0),TRUE)","v":true},{"$f":"IFERROR(IF(A25,0,IF(LEN('Súlycsökkenés nyilvántartása'!$B28)=0,0,'Súlycsökkenés nyilvántartása'!$B28)),\"\")","v":"00:00:00"},{"$f":"IFERROR(IF(A25,0,IF(LEN('Súlycsökkenés nyilvántartása'!$C28)=0,0,'Súlycsökkenés nyilvántartása'!$C28)),\"\")","v":0},{"$nulls":4},{"$error":"#N/A"},{"$error":"#N/A"},{"$f":"IFERROR(AVERAGEIFS(Súly[SÚLY],Súly[DÁTUM],\">=\"&$H25,Súly[DÁTUM],\"<=\"&$I25),NA())","v":{"$error":"#N/A"}}]
[{"$f":"IF((LEN('Súlycsökkenés nyilvántartása'!$C29)=0),TRUE)","v":true},{"$f":"IFERROR(IF(A26,0,IF(LEN('Súlycsökkenés nyilvántartása'!$B29)=0,0,'Súlycsökkenés nyilvántartása'!$B29)),\"\")","v":"00:00:00"},{"$f":"IFERROR(IF(A26,0,IF(LEN('Súlycsökkenés nyilvántartása'!$C29)=0,0,'Súlycsökkenés nyilvántartása'!$C29)),\"\")","v":0},{"$nulls":4},{"$error":"#N/A"},{"$error":"#N/A"},{"$f":"IFERROR(AVERAGEIFS(Súly[SÚLY],Súly[DÁTUM],\">=\"&$H26,Súly[DÁTUM],\"<=\"&$I26),NA())","v":{"$error":"#N/A"}}]
[{"$f":"IF((LEN('Súlycsökkenés nyilvántartása'!$C30)=0),TRUE)","v":true},{"$f":"IFERROR(IF(A27,0,IF(LEN('Súlycsökkenés nyilvántartása'!$B30)=0,0,'Súlycsökkenés nyilvántartása'!$B30)),\"\")","v":"00:00:00"},{"$f":"IFERROR(IF(A27,0,IF(LEN('Súlycsökkenés nyilvántartása'!$C30)=0,0,'Súlycsökkenés nyilvántartása'!$C30)),\"\")","v":0},{"$nulls":4},{"$error":"#N/A"},{"$error":"#N/A"},{"$f":"IFERROR(AVERAGEIFS(Súly[SÚLY],Súly[DÁTUM],\">=\"&$H27,Súly[DÁTUM],\"<=\"&$I27),NA())","v":{"$error":"#N/A"}}]
[{"$f":"IF((LEN('Súlycsökkenés nyilvántartása'!$C31)=0),TRUE)","v":true},{"$f":"IFERROR(IF(A28,0,IF(LEN('Súlycsökkenés nyilvántartása'!$B31)=0,0,'Súlycsökkenés nyilvántartása'!$B31)),\"\")","v":"00:00:00"},{"$f":"IFERROR(IF(A28,0,IF(LEN('Súlycsökkenés nyilvántartása'!$C31)=0,0,'Súlycsökkenés nyilvántartása'!$C31)),\"\")","v":0},{"$nulls":4},{"$error":"#N/A"},{"$error":"#N/A"},{"$f":"IFERROR(AVERAGEIFS(Súly[SÚLY],Súly[DÁTUM],\">=\"&$H28,Súly[DÁTUM],\"<=\"&$I28),NA())","v":{"$error":"#N/A"}}]
[{"$f":"IF((LEN('Súlycsökkenés nyilvántartása'!$C32)=0),TRUE)","v":true},{"$f":"IFERROR(IF(A29,0,IF(LEN('Súlycsökkenés nyilvántartása'!$B32)=0,0,'Súlycsökkenés nyilvántartása'!$B32)),\"\")","v":"00:00:00"},{"$f":"IFERROR(IF(A29,0,IF(LEN('Súlycsökkenés nyilvántartása'!$C32)=0,0,'Súlycsökkenés nyilvántartása'!$C32)),\"\")","v":0}]
[{"$f":"IF((LEN('Súlycsökkenés nyilvántartása'!$C33)=0),TRUE)","v":true},{"$f":"IFERROR(IF(A30,0,IF(LEN('Súlycsökkenés nyilvántartása'!$B33)=0,0,'Súlycsökkenés nyilvántartása'!$B33)),\"\")","v":"00:00:00"},{"$f":"IFERROR(IF(A30,0,IF(LEN('Súlycsökkenés nyilvántartása'!$C33)=0,0,'Súlycsökkenés nyilvántartása'!$C33)),\"\")","v":0}]
[{"$f":"IF((LEN('Súlycsökkenés nyilvántartása'!$C34)=0),TRUE)","v":true},{"$f":"IFERROR(IF(A31,0,IF(LEN('Súlycsökkenés nyilvántartása'!$B34)=0,0,'Súlycsökkenés nyilvántartása'!$B34)),\"\")","v":"00:00:00"},{"$f":"IFERROR(IF(A31,0,IF(LEN('Súlycsökkenés nyilvántartása'!$C34)=0,0,'Súlycsökkenés nyilvántartása'!$C34)),\"\")","v":0}]
[{"$f":"IF((LEN('Súlycsökkenés nyilvántartása'!$C35)=0),TRUE)","v":true},{"$f":"IFERROR(IF(A32,0,IF(LEN('Súlycsökkenés nyilvántartása'!$B35)=0,0,'Súlycsökkenés nyilvántartása'!$B35)),\"\")","v":"00:00:00"},{"$f":"IFERROR(IF(A32,0,IF(LEN('Súlycsökkenés nyilvántartása'!$C35)=0,0,'Súlycsökkenés nyilvántartása'!$C35)),\"\")","v":0}]
[{"$f":"IF((LEN('Súlycsökkenés nyilvántartása'!$C36)=0),TRUE)","v":true},{"$f":"IFERROR(IF(A33,0,IF(LEN('Súlycsökkenés nyilvántartása'!$B36)=0,0,'Súlycsökkenés nyilvántartása'!$B36)),\"\")","v":"00:00:00"},{"$f":"IFERROR(IF(A33,0,IF(LEN('Súlycsökkenés nyilvántartása'!$C36)=0,0,'Súlycsökkenés nyilvántartása'!$C36)),\"\")","v":0}]
[{"$f":"IF((LEN('Súlycsökkenés nyilvántartása'!$C37)=0),TRUE)","v":true},{"$f":"IFERROR(IF(A34,0,IF(LEN('Súlycsökkenés nyilvántartása'!$B37)=0,0,'Súlycsökkenés nyilvántartása'!$B37)),\"\")","v":"00:00:00"},{"$f":"IFERROR(IF(A34,0,IF(LEN('Súlycsökkenés nyilvántartása'!$C37)=0,0,'Súlycsökkenés nyilvántartása'!$C37)),\"\")","v":0}]
[{"$f":"IF((LEN('Súlycsökkenés nyilvántartása'!$C38)=0),TRUE)","v":true},{"$f":"IFERROR(IF(A35,0,IF(LEN('Súlycsökkenés nyilvántartása'!$B38)=0,0,'Súlycsökkenés nyilvántartása'!$B38)),\"\")","v":"00:00:00"},{"$f":"IFERROR(IF(A35,0,IF(LEN('Súlycsökkenés nyilvántartása'!$C38)=0,0,'Súlycsökkenés nyilvántartása'!$C38)),\"\")","v":0}]
[{"$f":"IF((LEN('Súlycsökkenés nyilvántartása'!$C39)=0),TRUE)","v":true},{"$f":"IFERROR(IF(A36,0,IF(LEN('Súlycsökkenés nyilvántartása'!$B39)=0,0,'Súlycsökkenés nyilvántartása'!$B39)),\"\")","v":"00:00:00"},{"$f":"IFERROR(IF(A36,0,IF(LEN('Súlycsökkenés nyilvántartása'!$C39)=0,0,'Súlycsökkenés nyilvántartása'!$C39)),\"\")","v":0}]
[{"$f":"IF((LEN('Súlycsökkenés nyilvántartása'!$C40)=0),TRUE)","v":true},{"$f":"IFERROR(IF(A37,0,IF(LEN('Súlycsökkenés nyilvántartása'!$B40)=0,0,'Súlycsökkenés nyilvántartása'!$B40)),\"\")","v":"00:00:00"},{"$f":"IFERROR(IF(A37,0,IF(LEN('Súlycsökkenés nyilvántartása'!$C40)=0,0,'Súlycsökkenés nyilvántartása'!$C40)),\"\")","v":0}]
[{"$f":"IF((LEN('Súlycsökkenés nyilvántartása'!$C41)=0),TRUE)","v":true},{"$f":"IFERROR(IF(A38,0,IF(LEN('Súlycsökkenés nyilvántartása'!$B41)=0,0,'Súlycsökkenés nyilvántartása'!$B41)),\"\")","v":"00:00:00"},{"$f":"IFERROR(IF(A38,0,IF(LEN('Súlycsökkenés nyilvántartása'!$C41)=0,0,'Súlycsökkenés nyilvántartása'!$C41)),\"\")","v":0}]
[{"$f":"IF((LEN('Súlycsökkenés nyilvántartása'!$C42)=0),TRUE)","v":true},{"$f":"IFERROR(IF(A39,0,IF(LEN('Súlycsökkenés nyilvántartása'!$B42)=0,0,'Súlycsökkenés nyilvántartása'!$B42)),\"\")","v":"00:00:00"},{"$f":"IFERROR(IF(A39,0,IF(LEN('Súlycsökkenés nyilvántartása'!$C42)=0,0,'Súlycsökkenés nyilvántartása'!$C42)),\"\")","v":0}]
[{"$f":"IF((LEN('Súlycsökkenés nyilvántartása'!$C43)=0),TRUE)","v":true},{"$f":"IFERROR(IF(A40,0,IF(LEN('Súlycsökkenés nyilvántartása'!$B43)=0,0,'Súlycsökkenés nyilvántartása'!$B43)),\"\")","v":"00:00:00"},{"$f":"IFERROR(IF(A40,0,IF(LEN('Súlycsökkenés nyilvántartása'!$C43)=0,0,'Súlycsökkenés nyilvántartása'!$C43)),\"\")","v":0}]
[{"$f":"IF((LEN('Súlycsökkenés nyilvántartása'!$C44)=0),TRUE)","v":true},{"$f":"IFERROR(IF(A41,0,IF(LEN('Súlycsökkenés nyilvántartása'!$B44)=0,0,'Súlycsökkenés nyilvántartása'!$B44)),\"\")","v":"00:00:00"},{"$f":"IFERROR(IF(A41,0,IF(LEN('Súlycsökkenés nyilvántartása'!$C44)=0,0,'Súlycsökkenés nyilvántartása'!$C44)),\"\")","v":0}]
[{"$f":"IF((LEN('Súlycsökkenés nyilvántartása'!$C45)=0),TRUE)","v":true},{"$f":"IFERROR(IF(A42,0,IF(LEN('Súlycsökkenés nyilvántartása'!$B45)=0,0,'Súlycsökkenés nyilvántartása'!$B45)),\"\")","v":"00:00:00"},{"$f":"IFERROR(IF(A42,0,IF(LEN('Súlycsökkenés nyilvántartása'!$C45)=0,0,'Súlycsökkenés nyilvántartása'!$C45)),\"\")","v":0}]
[{"$f":"IF((LEN('Súlycsökkenés nyilvántartása'!$C46)=0),TRUE)","v":true},{"$f":"IFERROR(IF(A43,0,IF(LEN('Súlycsökkenés nyilvántartása'!$B46)=0,0,'Súlycsökkenés nyilvántartása'!$B46)),\"\")","v":"00:00:00"},{"$f":"IFERROR(IF(A43,0,IF(LEN('Súlycsökkenés nyilvántartása'!$C46)=0,0,'Súlycsökkenés nyilvántartása'!$C46)),\"\")","v":0}]
[{"$f":"IF((LEN('Súlycsökkenés nyilvántartása'!$C47)=0),TRUE)","v":true},{"$f":"IFERROR(IF(A44,0,IF(LEN('Súlycsökkenés nyilvántartása'!$B47)=0,0,'Súlycsökkenés nyilvántartása'!$B47)),\"\")","v":"00:00:00"},{"$f":"IFERROR(IF(A44,0,IF(LEN('Súlycsökkenés nyilvántartása'!$C47)=0,0,'Súlycsökkenés nyilvántartása'!$C47)),\"\")","v":0}]
[{"$f":"IF((LEN('Súlycsökkenés nyilvántartása'!$C48)=0),TRUE)","v":true},{"$f":"IFERROR(IF(A45,0,IF(LEN('Súlycsökkenés nyilvántartása'!$B48)=0,0,'Súlycsökkenés nyilvántartása'!$B48)),\"\")","v":"00:00:00"},{"$f":"IFERROR(IF(A45,0,IF(LEN('Súlycsökkenés nyilvántartása'!$C48)=0,0,'Súlycsökkenés nyilvántartása'!$C48)),\"\")","v":0}]
[{"$f":"IF((LEN('Súlycsökkenés nyilvántartása'!$C49)=0),TRUE)","v":true},{"$f":"IFERROR(IF(A46,0,IF(LEN('Súlycsökkenés nyilvántartása'!$B49)=0,0,'Súlycsökkenés nyilvántartása'!$B49)),\"\")","v":"00:00:00"},{"$f":"IFERROR(IF(A46,0,IF(LEN('Súlycsökkenés nyilvántartása'!$C49)=0,0,'Súlycsökkenés nyilvántartása'!$C49)),\"\")","v":0}]
[{"$f":"IF((LEN('Súlycsökkenés nyilvántartása'!$C50)=0),TRUE)","v":true},{"$f":"IFERROR(IF(A47,0,IF(LEN('Súlycsökkenés nyilvántartása'!$B50)=0,0,'Súlycsökkenés nyilvántartása'!$B50)),\"\")","v":"00:00:00"},{"$f":"IFERROR(IF(A47,0,IF(LEN('Súlycsökkenés nyilvántartása'!$C50)=0,0,'Súlycsökkenés nyilvántartása'!$C50)),\"\")","v":0}]
[{"$f":"IF((LEN('Súlycsökkenés nyilvántartása'!$C51)=0),TRUE)","v":true},{"$f":"IFERROR(IF(A48,0,IF(LEN('Súlycsökkenés nyilvántartása'!$B51)=0,0,'Súlycsökkenés nyilvántartása'!$B51)),\"\")","v":"00:00:00"},{"$f":"IFERROR(IF(A48,0,IF(LEN('Súlycsökkenés nyilvántartása'!$C51)=0,0,'Súlycsökkenés nyilvántartása'!$C51)),\"\")","v":0}]
[{"$f":"IF((LEN('Súlycsökkenés nyilvántartása'!$C52)=0),TRUE)","v":true},{"$f":"IFERROR(IF(A49,0,IF(LEN('Súlycsökkenés nyilvántartása'!$B52)=0,0,'Súlycsökkenés nyilvántartása'!$B52)),\"\")","v":"00:00:00"},{"$f":"IFERROR(IF(A49,0,IF(LEN('Súlycsökkenés nyilvántartása'!$C52)=0,0,'Súlycsökkenés nyilvántartása'!$C52)),\"\")","v":0}]
[{"$f":"IF((LEN('Súlycsökkenés nyilvántartása'!$C53)=0),TRUE)","v":true},{"$f":"IFERROR(IF(A50,0,IF(LEN('Súlycsökkenés nyilvántartása'!$B53)=0,0,'Súlycsökkenés nyilvántartása'!$B53)),\"\")","v":"00:00:00"},{"$f":"IFERROR(IF(A50,0,IF(LEN('Súlycsökkenés nyilvántartása'!$C53)=0,0,'Súlycsökkenés nyilvántartása'!$C53)),\"\")","v":0}]
[{"$f":"IF((LEN('Súlycsökkenés nyilvántartása'!$C54)=0),TRUE)","v":true},{"$f":"IFERROR(IF(A51,0,IF(LEN('Súlycsökkenés nyilvántartása'!$B54)=0,0,'Súlycsökkenés nyilvántartása'!$B54)),\"\")","v":"00:00:00"},{"$f":"IFERROR(IF(A51,0,IF(LEN('Súlycsökkenés nyilvántartása'!$C54)=0,0,'Súlycsökkenés nyilvántartása'!$C54)),\"\")","v":0}]
[{"$f":"IF((LEN('Súlycsökkenés nyilvántartása'!$C55)=0),TRUE)","v":true},{"$f":"IFERROR(IF(A52,0,IF(LEN('Súlycsökkenés nyilvántartása'!$B55)=0,0,'Súlycsökkenés nyilvántartása'!$B55)),\"\")","v":"00:00:00"},{"$f":"IFERROR(IF(A52,0,IF(LEN('Súlycsökkenés nyilvántartása'!$C55)=0,0,'Súlycsökkenés nyilvántartása'!$C55)),\"\")","v":0}]
[{"$f":"IF((LEN('Súlycsökkenés nyilvántartása'!$C56)=0),TRUE)","v":true},{"$f":"IFERROR(IF(A53,0,IF(LEN('Súlycsökkenés nyilvántartása'!$B56)=0,0,'Súlycsökkenés nyilvántartása'!$B56)),\"\")","v":"00:00:00"},{"$f":"IFERROR(IF(A53,0,IF(LEN('Súlycsökkenés nyilvántartása'!$C56)=0,0,'Súlycsökkenés nyilvántartása'!$C56)),\"\")","v":0}]
[{"$f":"IF((LEN('Súlycsökkenés nyilvántartása'!$C57)=0),TRUE)","v":true},{"$f":"IFERROR(IF(A54,0,IF(LEN('Súlycsökkenés nyilvántartása'!$B57)=0,0,'Súlycsökkenés nyilvántartása'!$B57)),\"\")","v":"00:00:00"},{"$f":"IFERROR(IF(A54,0,IF(LEN('Súlycsökkenés nyilvántartása'!$C57)=0,0,'Súlycsökkenés nyilvántartása'!$C57)),\"\")","v":0}]
[{"$f":"IF((LEN('Súlycsökkenés nyilvántartása'!$C58)=0),TRUE)","v":true},{"$f":"IFERROR(IF(A55,0,IF(LEN('Súlycsökkenés nyilvántartása'!$B58)=0,0,'Súlycsökkenés nyilvántartása'!$B58)),\"\")","v":"00:00:00"},{"$f":"IFERROR(IF(A55,0,IF(LEN('Súlycsökkenés nyilvántartása'!$C58)=0,0,'Súlycsökkenés nyilvántartása'!$C58)),\"\")","v":0}]
[{"$f":"IF((LEN('Súlycsökkenés nyilvántartása'!$C59)=0),TRUE)","v":true},{"$f":"IFERROR(IF(A56,0,IF(LEN('Súlycsökkenés nyilvántartása'!$B59)=0,0,'Súlycsökkenés nyilvántartása'!$B59)),\"\")","v":"00:00:00"},{"$f":"IFERROR(IF(A56,0,IF(LEN('Súlycsökkenés nyilvántartása'!$C59)=0,0,'Súlycsökkenés nyilvántartása'!$C59)),\"\")","v":0}]
[{"$f":"IF((LEN('Súlycsökkenés nyilvántartása'!$C60)=0),TRUE)","v":true},{"$f":"IFERROR(IF(A57,0,IF(LEN('Súlycsökkenés nyilvántartása'!$B60)=0,0,'Súlycsökkenés nyilvántartása'!$B60)),\"\")","v":"00:00:00"},{"$f":"IFERROR(IF(A57,0,IF(LEN('Súlycsökkenés nyilvántartása'!$C60)=0,0,'Súlycsökkenés nyilvántartása'!$C60)),\"\")","v":0}]
[{"$f":"IF((LEN('Súlycsökkenés nyilvántartása'!$C61)=0),TRUE)","v":true},{"$f":"IFERROR(IF(A58,0,IF(LEN('Súlycsökkenés nyilvántartása'!$B61)=0,0,'Súlycsökkenés nyilvántartása'!$B61)),\"\")","v":"00:00:00"},{"$f":"IFERROR(IF(A58,0,IF(LEN('Súlycsökkenés nyilvántartása'!$C61)=0,0,'Súlycsökkenés nyilvántartása'!$C61)),\"\")","v":0}]
[{"$f":"IF((LEN('Súlycsökkenés nyilvántartása'!$C62)=0),TRUE)","v":true},{"$f":"IFERROR(IF(A59,0,IF(LEN('Súlycsökkenés nyilvántartása'!$B62)=0,0,'Súlycsökkenés nyilvántartása'!$B62)),\"\")","v":"00:00:00"},{"$f":"IFERROR(IF(A59,0,IF(LEN('Súlycsökkenés nyilvántartása'!$C62)=0,0,'Súlycsökkenés nyilvántartása'!$C62)),\"\")","v":0}]
[{"$f":"IF((LEN('Súlycsökkenés nyilvántartása'!$C63)=0),TRUE)","v":true},{"$f":"IFERROR(IF(A60,0,IF(LEN('Súlycsökkenés nyilvántartása'!$B63)=0,0,'Súlycsökkenés nyilvántartása'!$B63)),\"\")","v":"00:00:00"},{"$f":"IFERROR(IF(A60,0,IF(LEN('Súlycsökkenés nyilvántartása'!$C63)=0,0,'Súlycsökkenés nyilvántartása'!$C63)),\"\")","v":0}]
[{"$f":"IF((LEN('Súlycsökkenés nyilvántartása'!$C64)=0),TRUE)","v":true},{"$f":"IFERROR(IF(A61,0,IF(LEN('Súlycsökkenés nyilvántartása'!$B64)=0,0,'Súlycsökkenés nyilvántartása'!$B64)),\"\")","v":"00:00:00"},{"$f":"IFERROR(IF(A61,0,IF(LEN('Súlycsökkenés nyilvántartása'!$C64)=0,0,'Súlycsökkenés nyilvántartása'!$C64)),\"\")","v":0}]
[{"$f":"IF((LEN('Súlycsökkenés nyilvántartása'!$C65)=0),TRUE)","v":true},{"$f":"IFERROR(IF(A62,0,IF(LEN('Súlycsökkenés nyilvántartása'!$B65)=0,0,'Súlycsökkenés nyilvántartása'!$B65)),\"\")","v":"00:00:00"},{"$f":"IFERROR(IF(A62,0,IF(LEN('Súlycsökkenés nyilvántartása'!$C65)=0,0,'Súlycsökkenés nyilvántartása'!$C65)),\"\")","v":0}]
[{"$f":"IF((LEN('Súlycsökkenés nyilvántartása'!$C66)=0),TRUE)","v":true},{"$f":"IFERROR(IF(A63,0,IF(LEN('Súlycsökkenés nyilvántartása'!$B66)=0,0,'Súlycsökkenés nyilvántartása'!$B66)),\"\")","v":"00:00:00"},{"$f":"IFERROR(IF(A63,0,IF(LEN('Súlycsökkenés nyilvántartása'!$C66)=0,0,'Súlycsökkenés nyilvántartása'!$C66)),\"\")","v":0}]
[{"$f":"IF((LEN('Súlycsökkenés nyilvántartása'!$C67)=0),TRUE)","v":true},{"$f":"IFERROR(IF(A64,0,IF(LEN('Súlycsökkenés nyilvántartása'!$B67)=0,0,'Súlycsökkenés nyilvántartása'!$B67)),\"\")","v":"00:00:00"},{"$f":"IFERROR(IF(A64,0,IF(LEN('Súlycsökkenés nyilvántartása'!$C67)=0,0,'Súlycsökkenés nyilvántartása'!$C67)),\"\")","v":0}]
[{"$f":"IF((LEN('Súlycsökkenés nyilvántartása'!$C68)=0),TRUE)","v":true},{"$f":"IFERROR(IF(A65,0,IF(LEN('Súlycsökkenés nyilvántartása'!$B68)=0,0,'Súlycsökkenés nyilvántartása'!$B68)),\"\")","v":"00:00:00"},{"$f":"IFERROR(IF(A65,0,IF(LEN('Súlycsökkenés nyilvántartása'!$C68)=0,0,'Súlycsökkenés nyilvántartása'!$C68)),\"\")","v":0}]
[{"$f":"IF((LEN('Súlycsökkenés nyilvántartása'!$C69)=0),TRUE)","v":true},{"$f":"IFERROR(IF(A66,0,IF(LEN('Súlycsökkenés nyilvántartása'!$B69)=0,0,'Súlycsökkenés nyilvántartása'!$B69)),\"\")","v":"00:00:00"},{"$f":"IFERROR(IF(A66,0,IF(LEN('Súlycsökkenés nyilvántartása'!$C69)=0,0,'Súlycsökkenés nyilvántartása'!$C69)),\"\")","v":0}]
[{"$f":"IF((LEN('Súlycsökkenés nyilvántartása'!$C70)=0),TRUE)","v":true},{"$f":"IFERROR(IF(A67,0,IF(LEN('Súlycsökkenés nyilvántartása'!$B70)=0,0,'Súlycsökkenés nyilvántartása'!$B70)),\"\")","v":"00:00:00"},{"$f":"IFERROR(IF(A67,0,IF(LEN('Súlycsökkenés nyilvántartása'!$C70)=0,0,'Súlycsökkenés nyilvántartása'!$C70)),\"\")","v":0}]
[{"$f":"IF((LEN('Súlycsökkenés nyilvántartása'!$C71)=0),TRUE)","v":true},{"$f":"IFERROR(IF(A68,0,IF(LEN('Súlycsökkenés nyilvántartása'!$B71)=0,0,'Súlycsökkenés nyilvántartása'!$B71)),\"\")","v":"00:00:00"},{"$f":"IFERROR(IF(A68,0,IF(LEN('Súlycsökkenés nyilvántartása'!$C71)=0,0,'Súlycsökkenés nyilvántartása'!$C71)),\"\")","v":0}]
[{"$f":"IF((LEN('Súlycsökkenés nyilvántartása'!$C72)=0),TRUE)","v":true},{"$f":"IFERROR(IF(A69,0,IF(LEN('Súlycsökkenés nyilvántartása'!$B72)=0,0,'Súlycsökkenés nyilvántartása'!$B72)),\"\")","v":"00:00:00"},{"$f":"IFERROR(IF(A69,0,IF(LEN('Súlycsökkenés nyilvántartása'!$C72)=0,0,'Súlycsökkenés nyilvántartása'!$C72)),\"\")","v":0}]
[{"$f":"IF((LEN('Súlycsökkenés nyilvántartása'!$C73)=0),TRUE)","v":true},{"$f":"IFERROR(IF(A70,0,IF(LEN('Súlycsökkenés nyilvántartása'!$B73)=0,0,'Súlycsökkenés nyilvántartása'!$B73)),\"\")","v":"00:00:00"},{"$f":"IFERROR(IF(A70,0,IF(LEN('Súlycsökkenés nyilvántartása'!$C73)=0,0,'Súlycsökkenés nyilvántartása'!$C73)),\"\")","v":0}]
[{"$f":"IF((LEN('Súlycsökkenés nyilvántartása'!$C74)=0),TRUE)","v":true},{"$f":"IFERROR(IF(A71,0,IF(LEN('Súlycsökkenés nyilvántartása'!$B74)=0,0,'Súlycsökkenés nyilvántartása'!$B74)),\"\")","v":"00:00:00"},{"$f":"IFERROR(IF(A71,0,IF(LEN('Súlycsökkenés nyilvántartása'!$C74)=0,0,'Súlycsökkenés nyilvántartása'!$C74)),\"\")","v":0}]
[{"$f":"IF((LEN('Súlycsökkenés nyilvántartása'!$C75)=0),TRUE)","v":true},{"$f":"IFERROR(IF(A72,0,IF(LEN('Súlycsökkenés nyilvántartása'!$B75)=0,0,'Súlycsökkenés nyilvántartása'!$B75)),\"\")","v":"00:00:00"},{"$f":"IFERROR(IF(A72,0,IF(LEN('Súlycsökkenés nyilvántartása'!$C75)=0,0,'Súlycsökkenés nyilvántartása'!$C75)),\"\")","v":0}]
[{"$f":"IF((LEN('Súlycsökkenés nyilvántartása'!$C76)=0),TRUE)","v":true},{"$f":"IFERROR(IF(A73,0,IF(LEN('Súlycsökkenés nyilvántartása'!$B76)=0,0,'Súlycsökkenés nyilvántartása'!$B76)),\"\")","v":"00:00:00"},{"$f":"IFERROR(IF(A73,0,IF(LEN('Súlycsökkenés nyilvántartása'!$C76)=0,0,'Súlycsökkenés nyilvántartása'!$C76)),\"\")","v":0}]
[{"$f":"IF((LEN('Súlycsökkenés nyilvántartása'!$C77)=0),TRUE)","v":true},{"$f":"IFERROR(IF(A74,0,IF(LEN('Súlycsökkenés nyilvántartása'!$B77)=0,0,'Súlycsökkenés nyilvántartása'!$B77)),\"\")","v":"00:00:00"},{"$f":"IFERROR(IF(A74,0,IF(LEN('Súlycsökkenés nyilvántartása'!$C77)=0,0,'Súlycsökkenés nyilvántartása'!$C77)),\"\")","v":0}]
[{"$f":"IF((LEN('Súlycsökkenés nyilvántartása'!$C78)=0),TRUE)","v":true},{"$f":"IFERROR(IF(A75,0,IF(LEN('Súlycsökkenés nyilvántartása'!$B78)=0,0,'Súlycsökkenés nyilvántartása'!$B78)),\"\")","v":"00:00:00"},{"$f":"IFERROR(IF(A75,0,IF(LEN('Súlycsökkenés nyilvántartása'!$C78)=0,0,'Súlycsökkenés nyilvántartása'!$C78)),\"\")","v":0}]
[{"$f":"IF((LEN('Súlycsökkenés nyilvántartása'!$C79)=0),TRUE)","v":true},{"$f":"IFERROR(IF(A76,0,IF(LEN('Súlycsökkenés nyilvántartása'!$B79)=0,0,'Súlycsökkenés nyilvántartása'!$B79)),\"\")","v":"00:00:00"},{"$f":"IFERROR(IF(A76,0,IF(LEN('Súlycsökkenés nyilvántartása'!$C79)=0,0,'Súlycsökkenés nyilvántartása'!$C79)),\"\")","v":0}]
[{"$f":"IF((LEN('Súlycsökkenés nyilvántartása'!$C80)=0),TRUE)","v":true},{"$f":"IFERROR(IF(A77,0,IF(LEN('Súlycsökkenés nyilvántartása'!$B80)=0,0,'Súlycsökkenés nyilvántartása'!$B80)),\"\")","v":"00:00:00"},{"$f":"IFERROR(IF(A77,0,IF(LEN('Súlycsökkenés nyilvántartása'!$C80)=0,0,'Súlycsökkenés nyilvántartása'!$C80)),\"\")","v":0}]
[{"$f":"IF((LEN('Súlycsökkenés nyilvántartása'!$C81)=0),TRUE)","v":true},{"$f":"IFERROR(IF(A78,0,IF(LEN('Súlycsökkenés nyilvántartása'!$B81)=0,0,'Súlycsökkenés nyilvántartása'!$B81)),\"\")","v":"00:00:00"},{"$f":"IFERROR(IF(A78,0,IF(LEN('Súlycsökkenés nyilvántartása'!$C81)=0,0,'Súlycsökkenés nyilvántartása'!$C81)),\"\")","v":0}]
[{"$f":"IF((LEN('Súlycsökkenés nyilvántartása'!$C82)=0),TRUE)","v":true},{"$f":"IFERROR(IF(A79,0,IF(LEN('Súlycsökkenés nyilvántartása'!$B82)=0,0,'Súlycsökkenés nyilvántartása'!$B82)),\"\")","v":"00:00:00"},{"$f":"IFERROR(IF(A79,0,IF(LEN('Súlycsökkenés nyilvántartása'!$C82)=0,0,'Súlycsökkenés nyilvántartása'!$C82)),\"\")","v":0}]
[{"$f":"IF((LEN('Súlycsökkenés nyilvántartása'!$C83)=0),TRUE)","v":true},{"$f":"IFERROR(IF(A80,0,IF(LEN('Súlycsökkenés nyilvántartása'!$B83)=0,0,'Súlycsökkenés nyilvántartása'!$B83)),\"\")","v":"00:00:00"},{"$f":"IFERROR(IF(A80,0,IF(LEN('Súlycsökkenés nyilvántartása'!$C83)=0,0,'Súlycsökkenés nyilvántartása'!$C83)),\"\")","v":0}]
[{"$f":"IF((LEN('Súlycsökkenés nyilvántartása'!$C84)=0),TRUE)","v":true},{"$f":"IFERROR(IF(A81,0,IF(LEN('Súlycsökkenés nyilvántartása'!$B84)=0,0,'Súlycsökkenés nyilvántartása'!$B84)),\"\")","v":"00:00:00"},{"$f":"IFERROR(IF(A81,0,IF(LEN('Súlycsökkenés nyilvántartása'!$C84)=0,0,'Súlycsökkenés nyilvántartása'!$C84)),\"\")","v":0}]
[{"$f":"IF((LEN('Súlycsökkenés nyilvántartása'!$C85)=0),TRUE)","v":true},{"$f":"IFERROR(IF(A82,0,IF(LEN('Súlycsökkenés nyilvántartása'!$B85)=0,0,'Súlycsökkenés nyilvántartása'!$B85)),\"\")","v":"00:00:00"},{"$f":"IFERROR(IF(A82,0,IF(LEN('Súlycsökkenés nyilvántartása'!$C85)=0,0,'Súlycsökkenés nyilvántartása'!$C85)),\"\")","v":0}]
[{"$f":"IF((LEN('Súlycsökkenés nyilvántartása'!$C86)=0),TRUE)","v":true},{"$f":"IFERROR(IF(A83,0,IF(LEN('Súlycsökkenés nyilvántartása'!$B86)=0,0,'Súlycsökkenés nyilvántartása'!$B86)),\"\")","v":"00:00:00"},{"$f":"IFERROR(IF(A83,0,IF(LEN('Súlycsökkenés nyilvántartása'!$C86)=0,0,'Súlycsökkenés nyilvántartása'!$C86)),\"\")","v":0}]
[{"$f":"IF((LEN('Súlycsökkenés nyilvántartása'!$C87)=0),TRUE)","v":true},{"$f":"IFERROR(IF(A84,0,IF(LEN('Súlycsökkenés nyilvántartása'!$B87)=0,0,'Súlycsökkenés nyilvántartása'!$B87)),\"\")","v":"00:00:00"},{"$f":"IFERROR(IF(A84,0,IF(LEN('Súlycsökkenés nyilvántartása'!$C87)=0,0,'Súlycsökkenés nyilvántartása'!$C87)),\"\")","v":0}]
[{"$f":"IF((LEN('Súlycsökkenés nyilvántartása'!$C88)=0),TRUE)","v":true},{"$f":"IFERROR(IF(A85,0,IF(LEN('Súlycsökkenés nyilvántartása'!$B88)=0,0,'Súlycsökkenés nyilvántartása'!$B88)),\"\")","v":"00:00:00"},{"$f":"IFERROR(IF(A85,0,IF(LEN('Súlycsökkenés nyilvántartása'!$C88)=0,0,'Súlycsökkenés nyilvántartása'!$C88)),\"\")","v":0}]
[{"$f":"IF((LEN('Súlycsökkenés nyilvántartása'!$C89)=0),TRUE)","v":true},{"$f":"IFERROR(IF(A86,0,IF(LEN('Súlycsökkenés nyilvántartása'!$B89)=0,0,'Súlycsökkenés nyilvántartása'!$B89)),\"\")","v":"00:00:00"},{"$f":"IFERROR(IF(A86,0,IF(LEN('Súlycsökkenés nyilvántartása'!$C89)=0,0,'Súlycsökkenés nyilvántartása'!$C89)),\"\")","v":0}]
[{"$f":"IF((LEN('Súlycsökkenés nyilvántartása'!$C90)=0),TRUE)","v":true},{"$f":"IFERROR(IF(A87,0,IF(LEN('Súlycsökkenés nyilvántartása'!$B90)=0,0,'Súlycsökkenés nyilvántartása'!$B90)),\"\")","v":"00:00:00"},{"$f":"IFERROR(IF(A87,0,IF(LEN('Súlycsökkenés nyilvántartása'!$C90)=0,0,'Súlycsökkenés nyilvántartása'!$C90)),\"\")","v":0}]
[{"$f":"IF((LEN('Súlycsökkenés nyilvántartása'!$C91)=0),TRUE)","v":true},{"$f":"IFERROR(IF(A88,0,IF(LEN('Súlycsökkenés nyilvántartása'!$B91)=0,0,'Súlycsökkenés nyilvántartása'!$B91)),\"\")","v":"00:00:00"},{"$f":"IFERROR(IF(A88,0,IF(LEN('Súlycsökkenés nyilvántartása'!$C91)=0,0,'Súlycsökkenés nyilvántartása'!$C91)),\"\")","v":0}]
[{"$f":"IF((LEN('Súlycsökkenés nyilvántartása'!$C92)=0),TRUE)","v":true},{"$f":"IFERROR(IF(A89,0,IF(LEN('Súlycsökkenés nyilvántartása'!$B92)=0,0,'Súlycsökkenés nyilvántartása'!$B92)),\"\")","v":"00:00:00"},{"$f":"IFERROR(IF(A89,0,IF(LEN('Súlycsökkenés nyilvántartása'!$C92)=0,0,'Súlycsökkenés nyilvántartása'!$C92)),\"\")","v":0}]
[{"$f":"IF((LEN('Súlycsökkenés nyilvántartása'!$C93)=0),TRUE)","v":true},{"$f":"IFERROR(IF(A90,0,IF(LEN('Súlycsökkenés nyilvántartása'!$B93)=0,0,'Súlycsökkenés nyilvántartása'!$B93)),\"\")","v":"00:00:00"},{"$f":"IFERROR(IF(A90,0,IF(LEN('Súlycsökkenés nyilvántartása'!$C93)=0,0,'Súlycsökkenés nyilvántartása'!$C93)),\"\")","v":0}]
[{"$f":"IF((LEN('Súlycsökkenés nyilvántartása'!$C94)=0),TRUE)","v":true},{"$f":"IFERROR(IF(A91,0,IF(LEN('Súlycsökkenés nyilvántartása'!$B94)=0,0,'Súlycsökkenés nyilvántartása'!$B94)),\"\")","v":"00:00:00"},{"$f":"IFERROR(IF(A91,0,IF(LEN('Súlycsökkenés nyilvántartása'!$C94)=0,0,'Súlycsökkenés nyilvántartása'!$C94)),\"\")","v":0}]
[{"$f":"IF((LEN('Súlycsökkenés nyilvántartása'!$C95)=0),TRUE)","v":true},{"$f":"IFERROR(IF(A92,0,IF(LEN('Súlycsökkenés nyilvántartása'!$B95)=0,0,'Súlycsökkenés nyilvántartása'!$B95)),\"\")","v":"00:00:00"},{"$f":"IFERROR(IF(A92,0,IF(LEN('Súlycsökkenés nyilvántartása'!$C95)=0,0,'Súlycsökkenés nyilvántartása'!$C95)),\"\")","v":0}]
[{"$f":"IF((LEN('Súlycsökkenés nyilvántartása'!$C96)=0),TRUE)","v":true},{"$f":"IFERROR(IF(A93,0,IF(LEN('Súlycsökkenés nyilvántartása'!$B96)=0,0,'Súlycsökkenés nyilvántartása'!$B96)),\"\")","v":"00:00:00"},{"$f":"IFERROR(IF(A93,0,IF(LEN('Súlycsökkenés nyilvántartása'!$C96)=0,0,'Súlycsökkenés nyilvántartása'!$C96)),\"\")","v":0}]
[{"$f":"IF((LEN('Súlycsökkenés nyilvántartása'!$C97)=0),TRUE)","v":true},{"$f":"IFERROR(IF(A94,0,IF(LEN('Súlycsökkenés nyilvántartása'!$B97)=0,0,'Súlycsökkenés nyilvántartása'!$B97)),\"\")","v":"00:00:00"},{"$f":"IFERROR(IF(A94,0,IF(LEN('Súlycsökkenés nyilvántartása'!$C97)=0,0,'Súlycsökkenés nyilvántartása'!$C97)),\"\")","v":0}]
[{"$f":"IF((LEN('Súlycsökkenés nyilvántartása'!$C98)=0),TRUE)","v":true},{"$f":"IFERROR(IF(A95,0,IF(LEN('Súlycsökkenés nyilvántartása'!$B98)=0,0,'Súlycsökkenés nyilvántartása'!$B98)),\"\")","v":"00:00:00"},{"$f":"IFERROR(IF(A95,0,IF(LEN('Súlycsökkenés nyilvántartása'!$C98)=0,0,'Súlycsökkenés nyilvántartása'!$C98)),\"\")","v":0}]
[{"$f":"IF((LEN('Súlycsökkenés nyilvántartása'!$C99)=0),TRUE)","v":true},{"$f":"IFERROR(IF(A96,0,IF(LEN('Súlycsökkenés nyilvántartása'!$B99)=0,0,'Súlycsökkenés nyilvántartása'!$B99)),\"\")","v":"00:00:00"},{"$f":"IFERROR(IF(A96,0,IF(LEN('Súlycsökkenés nyilvántartása'!$C99)=0,0,'Súlycsökkenés nyilvántartása'!$C99)),\"\")","v":0}]
[{"$f":"IF((LEN('Súlycsökkenés nyilvántartása'!$C100)=0),TRUE)","v":true},{"$f":"IFERROR(IF(A97,0,IF(LEN('Súlycsökkenés nyilvántartása'!$B100)=0,0,'Súlycsökkenés nyilvántartása'!$B100)),\"\")","v":"00:00:00"},{"$f":"IFERROR(IF(A97,0,IF(LEN('Súlycsökkenés nyilvántartása'!$C100)=0,0,'Súlycsökkenés nyilvántartása'!$C100)),\"\")","v":0}]
[{"$f":"IF((LEN('Súlycsökkenés nyilvántartása'!$C101)=0),TRUE)","v":true},{"$f":"IFERROR(IF(A98,0,IF(LEN('Súlycsökkenés nyilvántartása'!$B101)=0,0,'Súlycsökkenés nyilvántartása'!$B101)),\"\")","v":"00:00:00"},{"$f":"IFERROR(IF(A98,0,IF(LEN('Súlycsökkenés nyilvántartása'!$C101)=0,0,'Súlycsökkenés nyilvántartása'!$C101)),\"\")","v":0}]
[{"$f":"IF((LEN('Súlycsökkenés nyilvántartása'!$C102)=0),TRUE)","v":true},{"$f":"IFERROR(IF(A99,0,IF(LEN('Súlycsökkenés nyilvántartása'!$B102)=0,0,'Súlycsökkenés nyilvántartása'!$B102)),\"\")","v":"00:00:00"},{"$f":"IFERROR(IF(A99,0,IF(LEN('Súlycsökkenés nyilvántartása'!$C102)=0,0,'Súlycsökkenés nyilvántartása'!$C102)),\"\")","v":0}]
[{"$f":"IF((LEN('Súlycsökkenés nyilvántartása'!$C103)=0),TRUE)","v":true},{"$f":"IFERROR(IF(A100,0,IF(LEN('Súlycsökkenés nyilvántartása'!$B103)=0,0,'Súlycsökkenés nyilvántartása'!$B103)),\"\")","v":"00:00:00"},{"$f":"IFERROR(IF(A100,0,IF(LEN('Súlycsökkenés nyilvántartása'!$C103)=0,0,'Súlycsökkenés nyilvántartása'!$C103)),\"\")","v":0}]
[{"$f":"IF((LEN('Súlycsökkenés nyilvántartása'!$C104)=0),TRUE)","v":true},{"$f":"IFERROR(IF(A101,0,IF(LEN('Súlycsökkenés nyilvántartása'!$B104)=0,0,'Súlycsökkenés nyilvántartása'!$B104)),\"\")","v":"00:00:00"},{"$f":"IFERROR(IF(A101,0,IF(LEN('Súlycsökkenés nyilvántartása'!$C104)=0,0,'Súlycsökkenés nyilvántartása'!$C104)),\"\")","v":0}]
[{"$f":"IF((LEN('Súlycsökkenés nyilvántartása'!$C105)=0),TRUE)","v":true},{"$f":"IFERROR(IF(A102,0,IF(LEN('Súlycsökkenés nyilvántartása'!$B105)=0,0,'Súlycsökkenés nyilvántartása'!$B105)),\"\")","v":"00:00:00"},{"$f":"IFERROR(IF(A102,0,IF(LEN('Súlycsökkenés nyilvántartása'!$C105)=0,0,'Súlycsökkenés nyilvántartása'!$C105)),\"\")","v":0}]
[{"$f":"IF((LEN('Súlycsökkenés nyilvántartása'!$C106)=0),TRUE)","v":true},{"$f":"IFERROR(IF(A103,0,IF(LEN('Súlycsökkenés nyilvántartása'!$B106)=0,0,'Súlycsökkenés nyilvántartása'!$B106)),\"\")","v":"00:00:00"},{"$f":"IFERROR(IF(A103,0,IF(LEN('Súlycsökkenés nyilvántartása'!$C106)=0,0,'Súlycsökkenés nyilvántartása'!$C106)),\"\")","v":0}]
[{"$f":"IF((LEN('Súlycsökkenés nyilvántartása'!$C107)=0),TRUE)","v":true},{"$f":"IFERROR(IF(A104,0,IF(LEN('Súlycsökkenés nyilvántartása'!$B107)=0,0,'Súlycsökkenés nyilvántartása'!$B107)),\"\")","v":"00:00:00"},{"$f":"IFERROR(IF(A104,0,IF(LEN('Súlycsökkenés nyilvántartása'!$C107)=0,0,'Súlycsökkenés nyilvántartása'!$C107)),\"\")","v":0}]
[{"$f":"IF((LEN('Súlycsökkenés nyilvántartása'!$C108)=0),TRUE)","v":true},{"$f":"IFERROR(IF(A105,0,IF(LEN('Súlycsökkenés nyilvántartása'!$B108)=0,0,'Súlycsökkenés nyilvántartása'!$B108)),\"\")","v":"00:00:00"},{"$f":"IFERROR(IF(A105,0,IF(LEN('Súlycsökkenés nyilvántartása'!$C108)=0,0,'Súlycsökkenés nyilvántartása'!$C108)),\"\")","v":0}]
[{"$f":"IF((LEN('Súlycsökkenés nyilvántartása'!$C109)=0),TRUE)","v":true},{"$f":"IFERROR(IF(A106,0,IF(LEN('Súlycsökkenés nyilvántartása'!$B109)=0,0,'Súlycsökkenés nyilvántartása'!$B109)),\"\")","v":"00:00:00"},{"$f":"IFERROR(IF(A106,0,IF(LEN('Súlycsökkenés nyilvántartása'!$C109)=0,0,'Súlycsökkenés nyilvántartása'!$C109)),\"\")","v":0}]
[{"$f":"IF((LEN('Súlycsökkenés nyilvántartása'!$C110)=0),TRUE)","v":true},{"$f":"IFERROR(IF(A107,0,IF(LEN('Súlycsökkenés nyilvántartása'!$B110)=0,0,'Súlycsökkenés nyilvántartása'!$B110)),\"\")","v":"00:00:00"},{"$f":"IFERROR(IF(A107,0,IF(LEN('Súlycsökkenés nyilvántartása'!$C110)=0,0,'Súlycsökkenés nyilvántartása'!$C110)),\"\")","v":0}]